[Event "17th Delhi GM Open 2019-B"]
[Site "Delhi"]
[Date "2019.01.09"]
[Round "1"]
[White "Apoorv Kamble"]
[Black "Chudasama Ankit"]
[Result "1-0"]
[ECO "B20"]
[WhiteElo "1458"]
[BlackElo "1856"]
[Annotator "NA RC"]
[PlyCount "93"]
[EventDate "2019.01.09"]
[EventType "swiss"]
[EventCountry "IND"]
[SourceTitle "playchess.com"]
[Source "ChessBase"]
[SourceQuality "1"]
[TimeControl "3600+30"]

1. e4 {[%emt 0:00:00]} c5 2. b3 {[%emt 0:00:00]} g6 {[%emt 0:00:00] B20: Sicilian: Unusual White 2nd moves} 3. Bb2 {[%emt 0:00:00]} Nf6 {[%emt 0:00:00]} 4. e5 {[%emt 0:00:00]} Nd5 {[%emt 0:00:00]} 5. Bc4 {[%emt 0:00:00]} (5. Qf3 Nb4 6. Na3 Bg7 7. e6 f6 8. c3 N4c6 9. Qe3 dxe6 10. Qxc5 {½-½ (41) Morozevich,A (2665)-Andreikin,D (2712) Moscow 2018}) 5... Nb6 {[%emt 0:00:00]} 6. Qf3 {[%emt 0:00:00]} Nxc4 {[%emt 0:00:00]} 7. bxc4 {[%emt 0:00:00]} Bg7 $146 {[%emt 0:00:00]} ({Predecessor:} 7... e6 8. Nc3 Bg7 9. Ne4 O-O 10. Ne2 {½-½ (49) Doell,D (2109)-Gauer,J (1974) Dresden 2010}) 8. Qe2 {[%emt 0:00:00]} O-O {[%emt 0:00:00]} 9. f4 {[%emt 0:00:00]} Nc6 {[%emt 0:00:00]} 10. Nf3 {[%emt 0:00:00]} d6 {[%emt 0:00:00]} 11. d3 {[%emt 0:00:00]} Bg4 {[%emt 0:00:00]} 12. Nbd2 {[%emt 0:00:00]} Nb4 {[%emt 0:01:24]} 13. O-O {[%emt 0:00:35]} Nxc2 {[%emt 0:03:22]} 14. Rac1 {[%emt 0:00:20]} Nb4 {[%emt 0:01:21]} 15. a3 {[%emt 0:00:39]} Nc6 {[%emt 0:01:39]} 16. h3 {[%emt 0:01:57]} Bxf3 {[%emt 0:00:43]} 17. Nxf3 {[%emt 0:01:34]} dxe5 {[%emt 0:00:02]} 18. Nxe5 {[%emt 0:00:46]} Nd4 {[%emt 0:01:42]} 19. Qe4 {[%emt 0:01:23]} f5 {[%emt 0:06:34]} 20. Qe3 {[%emt 0:01:32]} Qd6 {[%emt 0:02:35]} 21. Rfe1 {[%emt 0:02:24]} Rac8 {[%emt 0:05:34]} 22. Bxd4 {[%emt 0:00:01]} cxd4 {[%emt 0:01:09]} 23. Qd2 {[%emt 0:02:15]} Rc7 {[%emt 0:02:08]} 24. Qb4 {[%emt 0:01:55]} Qxb4 {[%emt 0:00:46]} 25. axb4 {[%emt 0:00:16]} Rd8 {[%emt 0:04:11]} 26. Ra1 {[%emt 0:00:45]} a6 {[%emt 0:00:06]} 27. c5 {[%emt 0:01:52]} Bf6 {[%emt 0:04:17]} 28. g3 {[%emt 0:00:58]} Rd5 {[%emt 0:02:55]} 29. Nc4 {[%emt 0:00:00]} Kf7 {[%emt 0:00:15]} 30. Re2 {[%emt 0:01:12]} Rd8 {[%emt 0:02:35]} 31. Rae1 {[%emt 0:00:02]} h5 {[%emt 0:00:01]} 32. h4 {[%emt 0:00:12]} Rd5 {[%emt 0:00:01]} 33. Kf2 {[%emt 0:00:01]} Rd8 {[%emt 0:00:18]} 34. Kf3 {[%emt 0:01:31]} Rc6 {[%emt 0:00:16] [#]} (34... Rb8 $1 $11) 35. Na5 $1 {[%emt 0:00:23]} Rc7 {[%emt 0:00:05]} 36. Re6 {[%emt 0:01:09]} Rdd7 {[%emt 0:00:51]} 37. Rb6 {[%emt 0:01:00]} Bg7 {[%emt 0:01:44]} 38. Ree6 {[%emt 0:00:21]} Bf6 {[%emt 0:00:00]} 39. Ke2 $18 {[%emt 0:01:27]} Ke8 {[%emt 0:00:43]} 40. Kd2 {[%emt 0:01:58]} Kf7 {[%emt 0:00:58]} 41. Kc2 {[%emt 0:00:58]} Rd5 {[%emt 0:00:13]} 42. Nxb7 {[%emt 0:00:49]} a5 {[%emt 0:01:16]} 43. Nxa5 {[%emt 0:00:24]} Ra7 {[%emt 0:00:30]} 44. Kb3 {[%emt 0:00:33]} Rxa5 {[%emt 0:00:06]} 45. bxa5 {[%emt 0:00:06]} Rxc5 {[%emt 0:00:00]} 46. a6 {[%emt 0:00:53]} Rc3+ {[%emt 0:00:07]} 47. Kb4 {[%emt 0:00:00]} 1-0